[Event "*** Titled Tuesday Blitz"]
[Site "Chess.com"]
[Date "2020.04.14"]
[Round "4"]
[White "Sychev_Klementy"]
[Black "krzyzan94"]
[Result "0-1"]
[WhiteElo "2840"]
[BlackElo "2705"]
[TimeControl "180+1"]
[EndTime "10:40:49 PDT"]
[Termination "krzyzan94 won on time"]

1. e4 {[%clk 0:02:52.8]} 1... e5 {[%clk 0:02:59.8]} 2. Nf3 {[%clk 0:02:51.7]}
2... Nc6 {[%clk 0:03:00.1]} 3. d4 {[%clk 0:02:50.7]} 3... exd4 {[%clk
0:02:59.2]} 4. Nxd4 {[%clk 0:02:51.3]} 4... Nf6 {[%clk 0:02:57.7]} 5. Nxc6
{[%clk 0:02:51.7]} 5... bxc6 {[%clk 0:02:58.1]} 6. e5 {[%clk 0:02:52.3]} 6...
Qe7 {[%clk 0:02:57.6]} 7. Qe2 {[%clk 0:02:52.8]} 7... Nd5 {[%clk 0:02:57.8]} 8.
g3 {[%clk 0:02:53.4]} 8... a5 {[%clk 0:02:37.4]} 9. c4 {[%clk 0:02:36.2]} 9...
Nb6 {[%clk 0:02:36.5]} 10. Bg2 {[%clk 0:02:32.2]} 10... Ba6 {[%clk 0:02:35.7]}
11. b3 {[%clk 0:02:29.3]} 11... f6 {[%clk 0:02:07.6]} 12. Bb2 {[%clk 0:02:03.8]}
12... fxe5 {[%clk 0:02:05.7]} 13. O-O {[%clk 0:01:45.8]} 13... O-O-O {[%clk
0:02:05.1]} 14. Qd2 {[%clk 0:01:16]} 14... Qc5 {[%clk 0:01:36.6]} 15. Re1 {[%clk
0:01:14.1]} 15... Bd6 {[%clk 0:01:24.5]} 16. Ba3 {[%clk 0:01:10]} 16... Qd4
{[%clk 0:01:24.2]} 17. Qxd4 {[%clk 0:01:09.8]} 17... exd4 {[%clk 0:01:25.1]} 18.
c5 {[%clk 0:01:10.2]} 18... Rde8 {[%clk 0:01:07.3]} 19. Rc1 {[%clk 0:01:05.9]}
19... Be5 {[%clk 0:00:58.1]} 20. cxb6 {[%clk 0:00:45.2]} 20... d3 {[%clk
0:00:57.1]} 21. b7+ {[%clk 0:00:43.3]} 21... Kxb7 {[%clk 0:00:55.6]} 22. Nd2
{[%clk 0:00:43.4]} 22... Bxa1 {[%clk 0:00:55.2]} 23. Rxa1 {[%clk 0:00:43.2]}
23... Re2 {[%clk 0:00:54.8]} 24. Rd1 {[%clk 0:00:42.1]} 24... Rhe8 {[%clk
0:00:53.9]} 25. Kf1 {[%clk 0:00:41]} 25... d5 {[%clk 0:00:52.1]} 26. Bb2 {[%clk
0:00:40.3]} 26... g6 {[%clk 0:00:49.8]} 27. Bc3 {[%clk 0:00:38.2]} 27... Kb6
{[%clk 0:00:46.1]} 28. Bf3 {[%clk 0:00:30.3]} 28... Rf8 {[%clk 0:00:43.1]} 29.
Kg2 {[%clk 0:00:24.6]} 29... Ree8 {[%clk 0:00:37.9]} 30. Rc1 {[%clk 0:00:24.4]}
30... c5 {[%clk 0:00:35.4]} 31. Bxd5 {[%clk 0:00:23.5]} 31... a4 {[%clk
0:00:29.8]} 32. Bf3 {[%clk 0:00:21.6]} 32... axb3 {[%clk 0:00:29.5]} 33. axb3
{[%clk 0:00:21.8]} 33... Bb7 {[%clk 0:00:28.2]} 34. Nc4+ {[%clk 0:00:20.8]}
34... Ka7 {[%clk 0:00:26]} 35. Ra1+ {[%clk 0:00:18.8]} 35... Kb8 {[%clk
0:00:26.4]} 36. Bxb7 {[%clk 0:00:18.6]} 36... Kxb7 {[%clk 0:00:27.3]} 37. Ne3
{[%clk 0:00:18.5]} 37... Ra8 {[%clk 0:00:24.1]} 38. Rd1 {[%clk 0:00:18.1]} 38...
Rfd8 {[%clk 0:00:24.4]} 39. Nc4 {[%clk 0:00:17.9]} 39... Ra2 {[%clk 0:00:23.3]}
40. Ne5 {[%clk 0:00:16.8]} 40... Rc2 {[%clk 0:00:23]} 41. Nxd3 {[%clk
0:00:10.8]} 41... Rxc3 {[%clk 0:00:23.2]} 42. Nxc5+ {[%clk 0:00:10.3]} 42... Kc8
{[%clk 0:00:23.8]} 43. Rxd8+ {[%clk 0:00:06.8]} 43... Kxd8 {[%clk 0:00:24.7]}
44. Ne6+ {[%clk 0:00:05.7]} 44... Ke7 {[%clk 0:00:21.9]} 45. Nd4 {[%clk
0:00:04]} 45... c5 {[%clk 0:00:21.4]} 46. Ne2 {[%clk 0:00:02.8]} 46... Rxb3
{[%clk 0:00:21.3]} 47. Kf1 {[%clk 0:00:02.5]} 47... Rb1+ {[%clk 0:00:19.6]} 48.
Kg2 {[%clk 0:00:02.3]} 48... Kd6 {[%clk 0:00:18.4]} 49. Kf3 {[%clk 0:00:02.8]}
49... Rb3+ {[%clk 0:00:18.1]} 50. Ke4 {[%clk 0:00:02.4]} 50... Rb2 {[%clk
0:00:17]} 51. Ke3 {[%clk 0:00:01.9]} 51... c4 {[%clk 0:00:16.6]} 52. h4 {[%clk
0:00:01.7]} 52... Kc5 {[%clk 0:00:15.5]} 53. Nf4 {[%clk 0:00:01.5]} 53... Rb3+
{[%clk 0:00:13.7]} 54. Kd2 {[%clk 0:00:01.4]} 54... Rb8 {[%clk 0:00:13.3]} 55.
Kc3 {[%clk 0:00:01.3]} 55... Rb3+ {[%clk 0:00:13.1]} 56. Kc2 {[%clk 0:00:01.7]}
56... Rf3 {[%clk 0:00:12.7]} 57. Ne6+ {[%clk 0:00:01.1]} 57... Kb4 {[%clk
0:00:11.7]} 58. Ng5 {[%clk 0:00:01.5]} 58... Rxf2+ {[%clk 0:00:12.2]} 59. Kc1
{[%clk 0:00:01.8]} 59... c3 {[%clk 0:00:12.8]} 0-1

[Event "*** Titled Tuesday Blitz"]
[Site "Chess.com"]
[Date "2020.04.14"]
[Round "4"]
[White "Filip_Covic"]
[Black "DivyaDeshmukh23"]
[Result "0-1"]
[WhiteElo "2303"]
[BlackElo "2488"]
[TimeControl "180+1"]
[EndTime "10:40:51 PDT"]
[Termination "DivyaDeshmukh23 won by checkmate"]

1. d4 {[%clk 0:03:00.9]} 1... Nf6 {[%clk 0:02:58.3]} 2. c4 {[%clk 0:03:00.6]}
2... e6 {[%clk 0:02:57.1]} 3. Nf3 {[%clk 0:03:00.1]} 3... Bb4+ {[%clk
0:02:55.1]} 4. Bd2 {[%clk 0:02:59.5]} 4... Qe7 {[%clk 0:02:52.9]} 5. g3 {[%clk
0:02:58.2]} 5... Nc6 {[%clk 0:02:36.9]} 6. Nc3 {[%clk 0:02:56.3]} 6... Bxc3
{[%clk 0:02:36.2]} 7. Bxc3 {[%clk 0:02:57.2]} 7... Ne4 {[%clk 0:02:36.2]} 8. Qc2
{[%clk 0:02:55.1]} 8... Nxc3 {[%clk 0:02:35.6]} 9. Qxc3 {[%clk 0:02:56]} 9...
O-O {[%clk 0:02:35.3]} 10. Bg2 {[%clk 0:02:55.4]} 10... d6 {[%clk 0:02:35.6]}
11. O-O {[%clk 0:02:54.3]} 11... e5 {[%clk 0:02:35]} 12. d5 {[%clk 0:02:45.5]}
12... Nb8 {[%clk 0:02:33.7]} 13. b4 {[%clk 0:02:39.5]} 13... a5 {[%clk
0:02:29.8]} 14. a3 {[%clk 0:02:37.8]} 14... Na6 {[%clk 0:02:29.1]} 15. e4 {[%clk
0:02:26.4]} 15... f5 {[%clk 0:02:23.2]} 16. exf5 {[%clk 0:02:24.5]} 16... Bxf5
{[%clk 0:02:17.9]} 17. Rfe1 {[%clk 0:02:21.4]} 17... Qf6 {[%clk 0:02:09]} 18. c5
{[%clk 0:02:03.5]} 18... Bg4 {[%clk 0:01:45.4]} 19. Re3 {[%clk 0:02:00.8]} 19...
dxc5 {[%clk 0:00:56.7]} 20. bxc5 {[%clk 0:01:37.1]} 20... Nxc5 {[%clk
0:00:55.1]} 21. Qxe5 {[%clk 0:01:07.9]} 21... a4 {[%clk 0:00:34.6]} 22. Qxf6
{[%clk 0:00:52.6]} 22... Rxf6 {[%clk 0:00:30.6]} 23. Rc1 {[%clk 0:00:53.1]}
23... b6 {[%clk 0:00:27.4]} 24. Ne5 {[%clk 0:00:50.5]} 24... Bf5 {[%clk
0:00:26]} 25. d6 {[%clk 0:00:48.2]} 25... Rc8 {[%clk 0:00:26]} 26. Bd5+ {[%clk
0:00:30.9]} 26... Kf8 {[%clk 0:00:25]} 27. dxc7 {[%clk 0:00:26.7]} 27... Rxc7
{[%clk 0:00:24.1]} 28. g4 {[%clk 0:00:25.1]} 28... Bc8 {[%clk 0:00:21.9]} 29. g5
{[%clk 0:00:12.3]} 29... Rf5 {[%clk 0:00:21.6]} 30. h4 {[%clk 0:00:12.7]} 30...
Rf4 {[%clk 0:00:21.7]} 31. Rc4 {[%clk 0:00:11.4]} 31... Rxc4 {[%clk 0:00:21.1]}
32. Nxc4 {[%clk 0:00:09.2]} 32... b5 {[%clk 0:00:21.4]} 33. Nd6 {[%clk
0:00:08.4]} 33... Bd7 {[%clk 0:00:21.5]} 34. Rc3 {[%clk 0:00:03.9]} 34... g6
{[%clk 0:00:20.1]} 35. Ne4 {[%clk 0:00:04.2]} 35... Na6 {[%clk 0:00:19.3]} 36.
Rf3+ {[%clk 0:00:03.4]} 36... Ke8 {[%clk 0:00:19]} 37. Bf7+ {[%clk 0:00:03.2]}
37... Ke7 {[%clk 0:00:18.8]} 38. Bg8 {[%clk 0:00:03.7]} 38... Rc1+ {[%clk
0:00:18.4]} 39. Kh2 {[%clk 0:00:04]} 39... Bc6 {[%clk 0:00:19.3]} 40. Rf7+
{[%clk 0:00:03.6]} 40... Ke6 {[%clk 0:00:18.2]} 41. Nf6 {[%clk 0:00:03.2]} 41...
Ke5 {[%clk 0:00:17.4]} 42. Re7+ {[%clk 0:00:03.1]} 42... Kf5 {[%clk 0:00:17.2]}
43. Bxh7 {[%clk 0:00:03.3]} 43... Rh1+ {[%clk 0:00:16.7]} 44. Kg3 {[%clk
0:00:03.6]} 44... Rg1+ {[%clk 0:00:17.4]} 45. Kh2 {[%clk 0:00:03.8]} 45... Rh1+
{[%clk 0:00:17.5]} 46. Kg3 {[%clk 0:00:04.3]} 46... Rg1+ {[%clk 0:00:17.8]} 47.
Kh2 {[%clk 0:00:04.8]} 47... Rg2+ {[%clk 0:00:17.2]} 48. Kh3 {[%clk 0:00:04.9]}
48... Rxf2 {[%clk 0:00:17.5]} 49. Rg7 {[%clk 0:00:03.3]} 49... Rf3+ {[%clk
0:00:17.3]} 50. Kh2 {[%clk 0:00:03.7]} 50... Rf2+ {[%clk 0:00:17.2]} 51. Kg3
{[%clk 0:00:04.3]} 51... Rf3+ {[%clk 0:00:16.3]} 52. Kh2 {[%clk 0:00:03.6]}
52... Rxa3 {[%clk 0:00:16.2]} 53. Bxg6+ {[%clk 0:00:03.5]} 53... Kf4 {[%clk
0:00:16.4]} 54. h5 {[%clk 0:00:02.1]} 54... Ra2+ {[%clk 0:00:16]} 55. Kh3 {[%clk
0:00:01.5]} 55... Ra1 {[%clk 0:00:16.1]} 56. Kh2 {[%clk 0:00:01.4]} 56... Rh1#
{[%clk 0:00:15.7]} 0-1

[Event "*** Titled Tuesday Blitz"]
[Site "Chess.com"]
[Date "2020.04.14"]
[Round "4"]
[White "wild_cat99"]
[Black "Aryangholami"]
[Result "1-0"]
[WhiteElo "2556"]
[BlackElo "2725"]
[TimeControl "180+1"]
[EndTime "10:40:53 PDT"]
[Termination "wild_cat99 won by checkmate"]

1. Nf3 {[%clk 0:03:00.9]} 1... Nf6 {[%clk 0:02:57.7]} 2. g3 {[%clk 0:03:00.4]}
2... b6 {[%clk 0:02:57.8]} 3. Bg2 {[%clk 0:03:00.4]} 3... Bb7 {[%clk 0:02:58.7]}
4. O-O {[%clk 0:03:01.1]} 4... e6 {[%clk 0:02:58.9]} 5. d3 {[%clk 0:02:58.2]}
5... d5 {[%clk 0:02:57.9]} 6. Nbd2 {[%clk 0:02:55.8]} 6... Be7 {[%clk 0:02:56]}
7. b3 {[%clk 0:02:55.6]} 7... O-O {[%clk 0:02:55.3]} 8. Bb2 {[%clk 0:02:56.3]}
8... c5 {[%clk 0:02:55.4]} 9. e3 {[%clk 0:02:54.1]} 9... Nbd7 {[%clk 0:02:52.8]}
10. Qe2 {[%clk 0:02:54.5]} 10... Rc8 {[%clk 0:02:51.2]} 11. e4 {[%clk
0:02:54.3]} 11... d4 {[%clk 0:02:50.9]} 12. e5 {[%clk 0:02:54.5]} 12... Nd5
{[%clk 0:02:50.6]} 13. Ne4 {[%clk 0:02:52]} 13... Qc7 {[%clk 0:02:49.9]} 14. c4
{[%clk 0:02:28.4]} 14... dxc3 {[%clk 0:02:39.8]} 15. Nxc3 {[%clk 0:02:28.1]}
15... Nb4 {[%clk 0:02:32.5]} 16. Nb5 {[%clk 0:02:12.7]} 16... Qb8 {[%clk
0:02:31.1]} 17. a4 {[%clk 0:01:37.2]} 17... Rfd8 {[%clk 0:02:22]} 18. Rad1
{[%clk 0:01:29.9]} 18... Bd5 {[%clk 0:02:20.8]} 19. Nd2 {[%clk 0:01:24.8]} 19...
Bxg2 {[%clk 0:02:11]} 20. Kxg2 {[%clk 0:01:25.7]} 20... a6 {[%clk 0:02:10.1]}
21. Na3 {[%clk 0:01:25.4]} 21... Nf8 {[%clk 0:02:09.9]} 22. Ndc4 {[%clk
0:01:17.7]} 22... Rd5 {[%clk 0:02:06]} 23. f4 {[%clk 0:01:10.5]} 23... Rcd8
{[%clk 0:02:04.8]} 24. Rf3 {[%clk 0:01:10.9]} 24... Qb7 {[%clk 0:02:03.6]} 25.
Qe4 {[%clk 0:00:29.2]} 25... Qb8 {[%clk 0:01:47.4]} 26. f5 {[%clk 0:00:27.3]}
26... Bg5 {[%clk 0:01:15.9]} 27. fxe6 {[%clk 0:00:25.6]} 27... Nxe6 {[%clk
0:01:14.3]} 28. h4 {[%clk 0:00:25.8]} 28... Be7 {[%clk 0:01:13.2]} 29. Rdf1
{[%clk 0:00:25.7]} 29... Rf8 {[%clk 0:01:11.6]} 30. Ne3 {[%clk 0:00:23.1]} 30...
Rxd3 {[%clk 0:01:06.2]} 31. Nf5 {[%clk 0:00:23.4]} 31... Rd2+ {[%clk 0:01:05]}
32. Kh3 {[%clk 0:00:21.1]} 32... Bd8 {[%clk 0:00:48.3]} 33. Qg4 {[%clk
0:00:21.2]} 33... Kh8 {[%clk 0:00:29.4]} 34. Bc3 {[%clk 0:00:17.6]} 34... Rd3
{[%clk 0:00:25.6]} 35. Rxd3 {[%clk 0:00:17]} 35... Nxd3 {[%clk 0:00:25]} 36. Nd6
{[%clk 0:00:17.2]} 36... Kg8 {[%clk 0:00:08.3]} 37. Nxf7 {[%clk 0:00:16.8]}
37... Qc8 {[%clk 0:00:02.6]} 38. Nh6+ {[%clk 0:00:16.2]} 38... Kh8 {[%clk
0:00:02.8]} 39. Rxf8+ {[%clk 0:00:10.1]} 39... Nxf8 {[%clk 0:00:03.7]} 40. Qxc8
{[%clk 0:00:11]} 40... Be7 {[%clk 0:00:02.7]} 41. Qe8 {[%clk 0:00:10.9]} 41...
Nf2+ {[%clk 0:00:03.1]} 42. Kg2 {[%clk 0:00:10.7]} 42... gxh6 {[%clk 0:00:03.7]}
43. Qxe7 {[%clk 0:00:10.7]} 43... Ne4 {[%clk 0:00:04.6]} 44. Qf6+ {[%clk
0:00:10.9]} 44... Nxf6 {[%clk 0:00:02.5]} 45. exf6 {[%clk 0:00:10.5]} 45... Kg8
{[%clk 0:00:03.4]} 46. Nc4 {[%clk 0:00:10.5]} 46... Kf7 {[%clk 0:00:04.3]} 47.
Nxb6 {[%clk 0:00:10.7]} 47... Ne6 {[%clk 0:00:04.8]} 48. Nd7 {[%clk 0:00:10.2]}
48... Nc7 {[%clk 0:00:04.9]} 49. Be5 {[%clk 0:00:09.3]} 49... Nd5 {[%clk
0:00:04.3]} 50. Nxc5 {[%clk 0:00:09.1]} 50... Ne3+ {[%clk 0:00:04.4]} 51. Kf3
{[%clk 0:00:09]} 51... Nc2 {[%clk 0:00:04.6]} 52. Nxa6 {[%clk 0:00:08.8]} 52...
Nb4 {[%clk 0:00:05]} 53. Nxb4 {[%clk 0:00:08.6]} 53... Ke6 {[%clk 0:00:04.2]}
54. a5 {[%clk 0:00:09.5]} 54... Kxe5 {[%clk 0:00:04.6]} 55. a6 {[%clk
0:00:10.4]} 55... Kxf6 {[%clk 0:00:05.5]} 56. a7 {[%clk 0:00:11.3]} 56... Ke5
{[%clk 0:00:06.4]} 57. a8=Q {[%clk 0:00:10.8]} 57... Kd4 {[%clk 0:00:07.3]} 58.
Qd5+ {[%clk 0:00:10.8]} 58... Kc3 {[%clk 0:00:08.2]} 59. Na2+ {[%clk 0:00:10.4]}
59... Kb2 {[%clk 0:00:09.1]} 60. Qd2+ {[%clk 0:00:10.2]} 60... Ka3 {[%clk
0:00:09.2]} 61. b4 {[%clk 0:00:09.8]} 61... h5 {[%clk 0:00:10.1]} 62. b5 {[%clk
0:00:09.5]} 62... Ka4 {[%clk 0:00:11]} 63. b6 {[%clk 0:00:08.9]} 63... Ka3
{[%clk 0:00:11.9]} 64. b7 {[%clk 0:00:09]} 64... Ka4 {[%clk 0:00:12.8]} 65. b8=Q
{[%clk 0:00:08.9]} 65... Ka3 {[%clk 0:00:13.7]} 66. Qbb4# {[%clk 0:00:08.6]} 1-0

[Event "*** Titled Tuesday Blitz"]
[Site "Chess.com"]
[Date "2020.04.14"]
[Round "4"]
[White "Olga_Girya"]
[Black "FannyDuarteNapoles"]
[Result "1-0"]
[WhiteElo "2476"]
[BlackElo "2282"]
[TimeControl "180+1"]
[EndTime "10:40:53 PDT"]
[Termination "Olga_Girya won by resignation"]

1. d4 {[%clk 0:03:00.9]} 1... d5 {[%clk 0:03:00]} 2. c4 {[%clk 0:03:00.7]} 2...
c6 {[%clk 0:03:00]} 3. Nf3 {[%clk 0:03:00.5]} 3... Nf6 {[%clk 0:02:59.9]} 4. e3
{[%clk 0:02:59.7]} 4... Bf5 {[%clk 0:02:59.5]} 5. Nc3 {[%clk 0:02:59.5]} 5... e6
{[%clk 0:02:59.4]} 6. Nh4 {[%clk 0:02:59.6]} 6... Bg6 {[%clk 0:02:59.2]} 7. Nxg6
{[%clk 0:02:58.8]} 7... hxg6 {[%clk 0:03:00.1]} 8. g3 {[%clk 0:02:58.8]} 8...
Nbd7 {[%clk 0:02:59.8]} 9. Qe2 {[%clk 0:02:56.8]} 9... Bd6 {[%clk 0:02:56.7]}
10. Bg2 {[%clk 0:02:56.6]} 10... Qe7 {[%clk 0:02:56.6]} 11. O-O {[%clk
0:02:53.6]} 11... dxc4 {[%clk 0:02:50.4]} 12. Qxc4 {[%clk 0:02:42.7]} 12... e5
{[%clk 0:02:48.5]} 13. d5 {[%clk 0:02:33.6]} 13... cxd5 {[%clk 0:02:45.9]} 14.
Nxd5 {[%clk 0:02:31.8]} 14... Nxd5 {[%clk 0:02:45.7]} 15. Qxd5 {[%clk
0:02:31.5]} 15... Nc5 {[%clk 0:02:35]} 16. b4 {[%clk 0:02:26.4]} 16... Ne6
{[%clk 0:02:30]} 17. Qxb7 {[%clk 0:02:26]} 17... Qxb7 {[%clk 0:02:29.4]} 18.
Bxb7 {[%clk 0:02:26.5]} 18... Rb8 {[%clk 0:02:30.3]} 19. Bc6+ {[%clk 0:02:26.7]}
19... Ke7 {[%clk 0:02:30.4]} 20. a3 {[%clk 0:02:20.4]} 20... Rhc8 {[%clk
0:02:29.6]} 21. Bd5 {[%clk 0:02:18.1]} 21... Rc2 {[%clk 0:02:29.1]} 22. Rd1
{[%clk 0:02:04.1]} 22... Rbc8 {[%clk 0:02:22.7]} 23. Bd2 {[%clk 0:02:01]} 23...
Nc7 {[%clk 0:02:18.3]} 24. Be4 {[%clk 0:01:57.8]} 24... Rc4 {[%clk 0:02:18.3]}
25. Bd3 {[%clk 0:01:56.5]} 25... Rc6 {[%clk 0:02:18.3]} 26. Rac1 {[%clk
0:01:55.8]} 26... Ne6 {[%clk 0:02:14.5]} 27. h4 {[%clk 0:01:38.9]} 27... f5
{[%clk 0:02:12.3]} 28. Kf1 {[%clk 0:01:36.6]} 28... e4 {[%clk 0:02:12.3]} 29.
Ba6 {[%clk 0:01:32.8]} 29... R8c7 {[%clk 0:02:11.7]} 30. Bb5 {[%clk 0:01:29]}
30... Rc2 {[%clk 0:02:08.4]} 31. Ke2 {[%clk 0:01:14.2]} 31... Ra2 {[%clk
0:02:01.9]} 32. Ra1 {[%clk 0:00:52.2]} 32... Rb2 {[%clk 0:01:52.5]} 33. Rdc1
{[%clk 0:00:44.7]} 33... Be5 {[%clk 0:01:47.2]} 34. Rab1 {[%clk 0:00:22.5]}
34... Ra2 {[%clk 0:01:42]} 35. Rxc7+ {[%clk 0:00:11.3]} 35... Nxc7 {[%clk
0:01:41.6]} 36. Bc4 {[%clk 0:00:11.4]} 36... Rxa3 {[%clk 0:01:41.7]} 37. Rc1
{[%clk 0:00:10.5]} 37... a6 {[%clk 0:01:34.1]} 38. Bg8 {[%clk 0:00:09]} 38...
Nb5 {[%clk 0:01:33]} 39. Bc4 {[%clk 0:00:08.2]} 39... Nc3+ {[%clk 0:01:30.5]}
40. Bxc3 {[%clk 0:00:07.4]} 40... Bxc3 {[%clk 0:01:31.4]} 41. b5 {[%clk
0:00:06.2]} 41... axb5 {[%clk 0:01:31.2]} 42. Bxb5 {[%clk 0:00:06.4]} 42... Ra2+
{[%clk 0:01:31.7]} 43. Kf1 {[%clk 0:00:06.9]} 43... Be5 {[%clk 0:01:30.9]} 44.
Bc4 {[%clk 0:00:06.8]} 44... Rb2 {[%clk 0:01:29.7]} 45. Bg8 {[%clk 0:00:06.4]}
45... Bd6 {[%clk 0:01:25.1]} 46. Rc6 {[%clk 0:00:05.1]} 46... Rd2 {[%clk
0:01:24.6]} 47. Bh7 {[%clk 0:00:04.8]} 47... Kf6 {[%clk 0:01:24.5]} 48. Ra6
{[%clk 0:00:04.3]} 48... g5 {[%clk 0:01:24.1]} 49. Ke1 {[%clk 0:00:04.4]} 49...
Rd5 {[%clk 0:01:23.7]} 50. hxg5+ {[%clk 0:00:04.5]} 50... Kxg5 {[%clk
0:01:23.7]} 51. Ke2 {[%clk 0:00:05.3]} 51... g6 {[%clk 0:01:22.7]} 52. Rc6
{[%clk 0:00:03.1]} 52... Kf6 {[%clk 0:01:22]} 53. Bg8 {[%clk 0:00:03]} 53... Rd3
{[%clk 0:01:21.7]} 54. Bc4 {[%clk 0:00:02.7]} 54... Rc3 {[%clk 0:01:20.6]} 55.
Rxd6+ {[%clk 0:00:03]} 55... Ke5 {[%clk 0:01:20.8]} 56. Rd4 {[%clk 0:00:03.9]}
56... Rc2+ {[%clk 0:01:20.3]} 57. Kf1 {[%clk 0:00:04.5]} 57... Rb2 {[%clk
0:01:19.6]} 58. Kg2 {[%clk 0:00:05.4]} 58... g5 {[%clk 0:01:19.6]} 59. Rd5+
{[%clk 0:00:05.7]} 59... Kf6 {[%clk 0:01:19.6]} 60. Rd6+ {[%clk 0:00:06.1]}
60... Kg7 {[%clk 0:01:19.3]} 61. Re6 {[%clk 0:00:06.1]} 61... Rc2 {[%clk
0:01:17.2]} 62. Rc6 {[%clk 0:00:06.6]} 62... Rc1 {[%clk 0:01:15.6]} 63. Bd5
{[%clk 0:00:06.2]} 63... Rd1 {[%clk 0:01:15.7]} 64. Rc7+ {[%clk 0:00:06]} 64...
Kf6 {[%clk 0:01:15.4]} 65. Bb7 {[%clk 0:00:06.9]} 65... Rd2 {[%clk 0:01:14.3]}
66. Rc6+ {[%clk 0:00:07]} 66... Ke5 {[%clk 0:01:14.1]} 67. Rc5+ {[%clk
0:00:07.5]} 67... Kf6 {[%clk 0:01:13.9]} 68. Bc8 {[%clk 0:00:07.7]} 68... f4
{[%clk 0:01:10.2]} 69. gxf4 {[%clk 0:00:07.8]} 69... gxf4 {[%clk 0:01:11.1]} 70.
Rf5+ {[%clk 0:00:08]} 70... Kg6 {[%clk 0:01:11.3]} 71. Rxf4 {[%clk 0:00:08.9]}
71... Rd8 {[%clk 0:01:10]} 72. Bf5+ {[%clk 0:00:08.5]} 72... Kg5 {[%clk
0:01:09.5]} 73. Bxe4 {[%clk 0:00:09.4]} 73... Rd2 {[%clk 0:01:09.5]} 74. Bf3
{[%clk 0:00:09.3]} 74... Ra2 {[%clk 0:01:08.4]} 75. Rg4+ {[%clk 0:00:09.5]}
75... Kf5 {[%clk 0:01:08.3]} 76. Rb4 {[%clk 0:00:10.4]} 76... Ke5 {[%clk
0:01:08.1]} 77. Kg3 {[%clk 0:00:10.6]} 77... Kf5 {[%clk 0:01:08.3]} 78. Rb5+
{[%clk 0:00:10.9]} 1-0

[Event "*** Titled Tuesday Blitz"]
[Site "Chess.com"]
[Date "2020.04.14"]
[Round "4"]
[White "albano87"]
[Black "adriangschnitzer"]
[Result "1-0"]
[WhiteElo "2173"]
[BlackElo "2373"]
[TimeControl "180+1"]
[EndTime "10:40:54 PDT"]
[Termination "albano87 won by resignation"]

1. e4 {[%clk 0:03:00.9]} 1... c5 {[%clk 0:02:57.7]} 2. Nf3 {[%clk 0:02:53.9]}
2... Nc6 {[%clk 0:02:58]} 3. d4 {[%clk 0:02:50.1]} 3... cxd4 {[%clk 0:02:58.9]}
4. Nxd4 {[%clk 0:02:48.7]} 4... g6 {[%clk 0:02:59.4]} 5. c4 {[%clk 0:02:48.4]}
5... Bg7 {[%clk 0:02:59.5]} 6. Be3 {[%clk 0:02:49]} 6... Nf6 {[%clk 0:03:00]} 7.
Nc3 {[%clk 0:02:49.3]} 7... O-O {[%clk 0:03:00.4]} 8. Be2 {[%clk 0:02:49.7]}
8... d6 {[%clk 0:03:00.8]} 9. O-O {[%clk 0:02:49.1]} 9... Bd7 {[%clk 0:03:01.1]}
10. Rc1 {[%clk 0:02:47.4]} 10... Nxd4 {[%clk 0:02:59.6]} 11. Bxd4 {[%clk
0:02:46]} 11... Bc6 {[%clk 0:03:00.2]} 12. f3 {[%clk 0:02:45.9]} 12... a5 {[%clk
0:03:00.2]} 13. Nd5 {[%clk 0:02:30.6]} 13... Nd7 {[%clk 0:02:58.2]} 14. Bxg7
{[%clk 0:02:26.2]} 14... Kxg7 {[%clk 0:02:59.1]} 15. Qd4+ {[%clk 0:02:25.8]}
15... Kg8 {[%clk 0:02:55.3]} 16. f4 {[%clk 0:02:10.5]} 16... e5 {[%clk
0:02:37.3]} 17. fxe5 {[%clk 0:02:04.6]} 17... dxe5 {[%clk 0:02:38.2]} 18. Qe3
{[%clk 0:02:00.3]} 18... Rc8 {[%clk 0:02:25.2]} 19. Kh1 {[%clk 0:01:57.9]} 19...
Bxd5 {[%clk 0:02:19.8]} 20. exd5 {[%clk 0:01:57.7]} 20... f5 {[%clk 0:02:18.8]}
21. c5 {[%clk 0:01:55.5]} 21... Qe7 {[%clk 0:02:09.2]} 22. d6 {[%clk 0:01:52.5]}
22... Qg7 {[%clk 0:02:05.8]} 23. Bc4+ {[%clk 0:01:33.8]} 23... Kh8 {[%clk
0:02:03]} 24. Bd5 {[%clk 0:01:34.7]} 24... f4 {[%clk 0:02:02.8]} 25. Qa3 {[%clk
0:01:20.3]} 25... Nf6 {[%clk 0:01:50.3]} 26. Qb3 {[%clk 0:01:02.1]} 26... Qh6
{[%clk 0:00:54.8]} 27. Be6 {[%clk 0:00:54]} 27... Rb8 {[%clk 0:00:51.2]} 28. d7
{[%clk 0:00:39.9]} 28... Ne4 {[%clk 0:00:48.9]} 29. Kg1 {[%clk 0:00:19.8]} 29...
f3 {[%clk 0:00:36.1]} 30. Qd3 {[%clk 0:00:11.9]} 30... f2+ {[%clk 0:00:26.7]}
31. Kh1 {[%clk 0:00:11.8]} 31... Ng3+ {[%clk 0:00:26.6]} 32. Qxg3 {[%clk
0:00:11]} 32... Rf6 {[%clk 0:00:12.2]} 33. Qxe5 {[%clk 0:00:10.1]} 33... Kg7
{[%clk 0:00:11.5]} 34. Rc2 {[%clk 0:00:07.8]} 34... Qh5 {[%clk 0:00:05.9]} 35.
Qxh5 {[%clk 0:00:07.4]} 35... gxh5 {[%clk 0:00:06.8]} 36. Rd2 {[%clk 0:00:05.8]}
36... Rd8 {[%clk 0:00:05.8]} 37. Bh3 {[%clk 0:00:04.9]} 37... h4 {[%clk
0:00:04.1]} 38. Rfxf2 {[%clk 0:00:05.1]} 38... b6 {[%clk 0:00:03.8]} 39. Rxf6
{[%clk 0:00:04.9]} 39... Kxf6 {[%clk 0:00:04.7]} 40. c6 {[%clk 0:00:05.6]} 40...
Ke7 {[%clk 0:00:04.6]} 41. c7 {[%clk 0:00:06.1]} 41... Rf8 {[%clk 0:00:04.8]}
42. Re2+ {[%clk 0:00:06.7]} 42... Kd6 {[%clk 0:00:04.5]} 43. Rd2+ {[%clk
0:00:05.5]} 43... Kxc7 {[%clk 0:00:04]} 44. d8=Q+ {[%clk 0:00:06.4]} 44... Rxd8
{[%clk 0:00:04.1]} 45. Rxd8 {[%clk 0:00:07]} 45... Kxd8 {[%clk 0:00:05]} 46. Kg1
{[%clk 0:00:07.7]} 46... Kc7 {[%clk 0:00:05.9]} 47. Kf2 {[%clk 0:00:08.4]} 47...
Kd6 {[%clk 0:00:06.8]} 48. Kf3 {[%clk 0:00:08.9]} 48... Kc5 {[%clk 0:00:07.7]}
49. Kg4 {[%clk 0:00:09.4]} 49... Kd4 {[%clk 0:00:08.6]} 50. Kxh4 {[%clk
0:00:09.8]} 50... Kd3 {[%clk 0:00:09.5]} 51. Bf5+ {[%clk 0:00:10]} 51... Kd2
{[%clk 0:00:09.3]} 52. Bxh7 {[%clk 0:00:09.6]} 52... Kc1 {[%clk 0:00:10.2]} 53.
g4 {[%clk 0:00:10.2]} 53... Kxb2 {[%clk 0:00:11.1]} 54. g5 {[%clk 0:00:11.1]}
54... Kxa2 {[%clk 0:00:10.6]} 55. g6 {[%clk 0:00:12]} 55... b5 {[%clk
0:00:11.5]} 56. g7 {[%clk 0:00:12.8]} 56... b4 {[%clk 0:00:12.4]} 57. g8=Q+
{[%clk 0:00:13.3]} 57... b3 {[%clk 0:00:12.7]} 58. Bc2 {[%clk 0:00:13.8]} 58...
a4 {[%clk 0:00:13.6]} 59. Bxb3+ {[%clk 0:00:14.7]} 59... axb3 {[%clk 0:00:14]}
60. Kg5 {[%clk 0:00:15.5]} 60... Ka3 {[%clk 0:00:13.3]} 61. h4 {[%clk
0:00:15.9]} 61... b2 {[%clk 0:00:14.2]} 62. h5 {[%clk 0:00:15.5]} 62... b1=Q
{[%clk 0:00:13.9]} 63. Qa8+ {[%clk 0:00:15.8]} 63... Kb2 {[%clk 0:00:14.4]} 64.
Qb8+ {[%clk 0:00:16.4]} 64... Kc2 {[%clk 0:00:14.5]} 65. Qxb1+ {[%clk
0:00:17.3]} 65... Kxb1 {[%clk 0:00:15.4]} 66. h6 {[%clk 0:00:18]} 66... Kc2
{[%clk 0:00:16.3]} 67. h7 {[%clk 0:00:18.4]} 1-0